bitfinex/quotes_SOLUSD_20250528
["timestamp","ask_amount","ask_price","bid_price","bid_amount"]
[1748446307871,50.06184109,169.79,169.7,208.34964886]
[1748446308858,50.06184109,169.79,169.7,62.04964886]
[1748446309668,20.61369927,169.79,169.7,62.04964886]
[1748446309852,20.61369927,169.79,169.7,63.59264886]
[1748446313362,20.61369927,169.79,169.72,18.64964886]
[1748446313769,20.61369927,169.79,169.72,208.34964886]
[1748446314152,20.61369927,169.79,169.72,18.64964886]
[1748446315477,14.72407091,169.79,169.72,18.64964886]
[1748446318382,14.72407091,169.79,169.71,37.06]
[1748446318677,14.72407091,169.79,169.72,18.64964886]
[1748446320986,14.72407091,169.79,169.71,18.64964886]
[1748446321969,14.72407091,169.79,169.7,11.483]
[1748446322173,14.72407091,169.79,169.71,18.64964886]
[1748446323006,5.8892815,169.8,169.71,18.64964886]
[1748446324097,5.88858791,169.82,169.72,6.5957]
[1748446324271,5.88858791,169.82,169.73,18.64964886]
[1748446324472,5.88858791,169.82,169.73,25.07451383]
[1748446324791,5.88858791,169.82,169.73,25.66333518]
[1748446325165,20.60688858,169.85,169.75,18.64964886]
[1748446325379,20.60688858,169.85,169.75,55.70964886]
[1748446326467,20.60688858,169.85,169.75,60.39826179]
[1748446327694,5.88754783,169.85,169.77,18.64964886]
[1748446328192,5.88754783,169.85,169.79,18.64964886]
[1748446328504,5.88720122,169.86,169.79,18.64964886]
[1748446329696,14.71683192,169.88,169.79,18.64964886]
[1748446329697,20.60334004,169.88,169.79,18.64964886]
[1748446331909,14.71683192,169.88,169.79,18.64964886]
[1748446334032,5.88616163,169.89,169.79,24.53905666]
[1748446334181,5.88616163,169.89,169.79,30.96392163]
[1748446335102,20.60156571,169.89,169.79,25.07451383]
[1748446335497,20.60156571,169.89,169.79,72.05451383]
[1748446335691,20.60156571,169.89,169.79,28.58964886]
[1748446336087,26.70596571,169.89,169.79,28.58964886]
[1748446336305,56.13677387,169.89,169.79,28.58964886]
[1748446336518,76.91615617,169.89,169.79,28.58964886]
[1748446336727,76.91615617,169.89,169.76,18.64964886]
[1748446337789,56.13677387,169.89,169.76,18.64964886]
[1748446339983,76.91615617,169.89,169.76,18.64964886]
[1748446340193,1.6316,169.87,169.76,18.64964886]
[1748446340422,1.6316,169.83,169.73,18.64964886]
[1748446340687,1.6316,169.83,169.73,23.37537049]
[1748446341613,20.6100577,169.82,169.73,18.64964886]
[1748446341790,26.8195577,169.82,169.73,18.64964886]
[1748446342195,26.8195577,169.82,169.72,18.64964886]
[1748446343017,77.04187958,169.82,169.71,18.64964886]
[1748446343195,20.7793823,169.8,169.71,18.64964886]
[1748446343390,30.6993823,169.79,169.69,18.64964886]
[1748446343706,20.61491341,169.78,169.69,18.64964886]
[1748446348389,5.88997526,169.78,169.69,18.64964886]
[1748446348714,5.8892815,169.8,169.71,18.64964886]
[1748446348906,5.8892815,169.8,169.73,18.64964886]
[1748446349215,20.60832695,169.84,169.75,18.64964886]
[1748446355634,17.66,169.83,169.75,18.64964886]
[1748446355801,55.24825622,169.84,169.73,9.92]
[1748446356001,34.63992927,169.82,169.73,9.92]
[1748446356202,1.5725,169.83,169.7,18.64964886]
[1748446356203,34.63992927,169.81,169.7,18.64964886]
[1748446356401,6.0003,169.79,169.69,6.46865899]
[1748446356623,1.52,169.78,169.7,18.64964886]
[1748446358123,20.6161277,169.77,169.7,18.64964886]
[1748446359034,50.0677387,169.77,169.7,18.64964886]
[1748446359527,5.8903222,169.77,169.7,27.42244738]
[1748446360831,5.88962836,169.79,169.71,8.77279852]
[1748446361005,5.88858791,169.82,169.73,18.64964886]
[1748446361330,20.6100577,169.82,169.73,27.42244738]
[1748446361507,20.6100577,169.82,169.73,18.64964886]
[1748446362426,50.05299728,169.82,169.73,18.64964886]
[1748446365423,20.6100577,169.82,169.73,18.64964886]
[1748446365621,20.6100577,169.82,169.73,27.42244738]
[1748446371651,20.6100577,169.82,169.73,18.64964886]
[1748446371961,50.05299728,169.82,169.71,18.64964886]
[1748446375117,20.79499053,169.81,169.71,18.64964886]
[1748446375441,20.79499053,169.8,169.7,18.64964886]
[1748446375812,20.79499053,169.81,169.7,18.64964886]
[1748446376215,87.07299728,169.82,169.7,18.64964886]
[1748446376216,70.85388332,169.8,169.7,18.64964886]
[1748446377117,50.05889279,169.8,169.7,18.64964886]
[1748446379834,20.61248526,169.8,169.7,18.64964886]
[1748446380263,14.72320376,169.8,169.7,18.64964886]
[1748446382235,14.72320376,169.8,169.71,18.64964886]
[1748446382550,14.72320376,169.8,169.72,18.64964886]
[1748446382752,14.72320376,169.8,169.72,27.42244738]
[1748446383857,14.72320376,169.8,169.7,18.64964886]
[1748446385249,14.72320376,169.8,169.69,18.64964886]
[1748446385431,14.72320376,169.8,169.69,27.42244738]
[1748446386838,14.72320376,169.8,169.69,33.31544675]
[1748446387042,14.72320376,169.8,169.69,40.43942283]
[1748446387267,14.72320376,169.8,169.7,8.77279852]
[1748446388652,14.72320376,169.8,169.7,14.66536988]
[1748446390841,14.72320376,169.8,169.7,8.77279852]
[1748446392944,14.72320376,169.8,169.69,18.64964886]
[1748446393168,1.5905,169.79,169.69,18.64964886]
[1748446394882,5.88997526,169.78,169.69,18.64964886]
[1748446395247,5.88997526,169.78,169.69,24.54261445]
[1748446395450,5.88997526,169.78,169.71,18.64964886]
[1748446396878,14.72320376,169.8,169.71,18.64964886]
[1748446399695,5.88858791,169.82,169.71,24.54189642]
[1748446399865,5.88858791,169.82,169.73,18.64964886]
[1748446400989,5.88858791,169.82,169.73,24.54128066]
[1748446401353,5.88754783,169.85,169.75,18.64964886]
[1748446402453,20.60574622,169.86,169.75,24.54038119]
[1748446405076,20.60156571,169.89,169.77,18.64964886]
[1748446406070,5.88616163,169.89,169.77,18.64964886]
[1748446406304,5.88616163,169.89,169.79,18.64964886]
[1748446406583,20.60156571,169.89,169.79,18.64964886]
[1748446406790,50.03237387,169.89,169.79,18.64964886]
[1748446409374,50.03237387,169.89,169.77,18.64964886]
[1748446411379,6.409,169.88,169.77,18.64964886]
[1748446412903,20.60399128,169.87,169.77,18.64964886]
[1748446414980,20.60399128,169.87,169.75,18.64964886]
[1748446415178,20.60399128,169.87,169.75,65.52964886]
[1748446415998,20.60399128,169.87,169.75,80.19337986]
[1748446416896,20.60399128,169.87,169.75,87.31735594]
[1748446418114,14.71713663,169.87,169.75,87.31735594]
[1748446419601,14.71713663,169.87,169.75,234.14642346]
[1748446419803,29.06369053,169.86,169.75,218.24964886]
[1748446420096,20.79499053,169.84,169.75,218.24964886]
[1748446420405,20.79499053,169.84,169.75,199.6]
[1748446420579,20.79499053,169.84,169.76,18.64964886]
[1748446421286,20.79499053,169.84,169.76,62.04964886]
[1748446421678,5.88824118,169.83,169.76,62.04964886]
[1748446421881,20.60884413,169.83,169.76,62.04964886]
[1748446423881,14.72060295,169.83,169.76,62.04964886]
[1748446426317,35.51559348,169.83,169.76,62.04964886]
[1748446426812,14.72060295,169.83,169.76,62.04964886]
[1748446430185,5.88789448,169.84,169.76,208.34964886]
[1748446430385,5.88789448,169.84,169.76,245.32964886]
[1748446430705,5.88789448,169.84,169.76,255.68844738]
[1748446431719,5.88789448,169.84,169.76,261.57910915]
[1748446431909,5.88789448,169.84,169.78,18.64964886]
[1748446432309,5.88650812,169.88,169.85,18.64964886]
[1748446432512,5.88650812,169.88,169.85,62.04964886]
[1748446433606,20.60224776,169.89,169.85,62.04964886]
[1748446436222,20.60224776,169.89,169.85,208.34964886]
[1748446436223,5.88616163,169.89,169.85,208.34964886]
[1748446440910,20.60156571,169.89,169.85,208.34964886]
[1748446441528,20.60156571,169.89,169.85,62.04964886]
[1748446442541,41.39655624,169.89,169.85,62.04964886]
[1748446442739,70.8273644,169.89,169.79,18.64964886]
[1748446442921,70.8273644,169.89,169.79,208.34964886]
[1748446443124,20.79499053,169.88,169.79,208.34964886]
[1748446443323,20.60399128,169.87,169.79,208.34964886]
[1748446443839,20.79499053,169.86,169.79,62.04964886]
[1748446444139,20.79499053,169.85,169.79,62.04964886]
[1748446444340,20.79499053,169.86,169.79,62.04964886]
[1748446444848,20.60641742,169.85,169.79,62.04964886]
[1748446447324,70.83914713,169.85,169.79,62.04964886]
[1748446448324,50.0441566,169.85,169.79,62.04964886]
[1748446449622,70.83914713,169.85,169.79,62.04964886]
[1748446449823,20.79499053,169.83,169.79,62.04964886]
[1748446450552,20.79499053,169.81,169.79,62.04964886]
[1748446450954,38.5387,169.84,169.74,18.64964886]
[1748446450955,20.79499053,169.8,169.74,18.64964886]
[1748446451133,20.79499053,169.8,169.74,62.04964886]
[1748446451447,20.61369927,169.79,169.74,62.04964886]
[1748446451649,41.4086898,169.79,169.74,62.04964886]
[1748446452149,20.79499053,169.78,169.74,62.04964886]
[1748446453048,20.61369927,169.79,169.74,62.04964886]
[1748446453624,14.72407091,169.79,169.74,62.04964886]
[1748446455578,20.79499053,169.75,169.74,62.04964886]
[1748446455746,20.79499053,169.75,169.7,43.4]
[1748446456062,20.79499053,169.72,169.7,43.4]
[1748446456244,20.79499053,169.72,169.64,189.7]
[1748446456439,20.79499053,169.73,169.65,18.64964886]
[1748446456642,20.79499053,169.72,169.65,62.04964886]
[1748446456846,20.79499053,169.71,169.65,43.4]
[1748446457155,22.30959053,169.71,169.65,43.4]
[1748446457540,1.5146,169.71,169.66,18.64964886]
[1748446457742,5.89275191,169.7,169.66,18.64964886]
[1748446461731,64.14260937,169.8,169.66,18.64964886]
[1748446461732,5.89136326,169.74,169.66,18.64964886]
[1748446462059,5.89136326,169.74,169.68,18.64964886]
[1748446462241,5.89136326,169.74,169.68,208.34964886]
[1748446465952,20.61977141,169.74,169.68,208.34964886]
[1748446466451,55.31597325,169.74,169.68,208.34964886]
[1748446466836,20.61977141,169.74,169.68,208.34964886]
[1748446471341,5.89136326,169.74,169.68,208.34964886]
[1748446471553,5.89136326,169.74,169.68,217.12244738]
[1748446471762,5.89136326,169.74,169.68,254.08244738]
[1748446472260,14.7261563,169.77,169.68,254.08244738]
[1748446472261,5.89066918,169.76,169.68,254.08244738]
[1748446472841,5.89066918,169.76,169.7,18.64964886]
[1748446473243,20.61491341,169.78,169.7,208.34964886]
[1748446473934,34.69620184,169.76,169.7,208.34964886]
[1748446474139,34.69620184,169.74,169.7,208.34964886]
[1748446474339,20.61491341,169.78,169.7,62.04964886]
[1748446474340,71.65620184,169.76,169.7,62.04964886]
[1748446474863,34.69620184,169.75,169.7,62.04964886]
[1748446475067,36.25410184,169.73,169.7,62.04964886]
[1748446475275,20.62341641,169.71,169.66,18.64964886]
[1748446475568,20.62341641,169.71,169.66,62.04964886]
[1748446478043,41.43979835,169.71,169.66,62.04964886]
[1748446478770,20.62341641,169.71,169.66,62.04964886]
[1748446479352,41.43979835,169.71,169.66,62.04964886]
[1748446480182,20.62341641,169.71,169.66,62.04964886]
[1748446480558,5.89240469,169.71,169.66,62.04964886]
[1748446482058,5.89136326,169.74,169.66,208.34964886]
[1748446482266,20.61977141,169.74,169.66,217.12244738]
[1748446491369,20.61977141,169.74,169.68,18.64964886]
[1748446492264,20.61977141,169.74,169.68,208.34964886]
[1748446494700,5.89136326,169.74,169.68,208.34964886]
[1748446494863,1.6064,169.78,169.77,18.64964886]
[1748446495201,1.6064,169.78,169.77,51.85897968]
[1748446495363,30.69638194,169.8,169.77,51.85897968]
[1748446496272,5.88962836,169.79,169.77,51.85897968]
[1748446500395,14.72379361,169.8,169.77,51.85897968]
[1748446501989,5.88858791,169.82,169.81,18.64964886]
[1748446502197,5.88858791,169.82,169.81,26.33518607]
[1748446502402,9.86,169.84,169.81,26.33518607]
[1748446502702,20.81638194,169.82,169.81,26.33518607]
[1748446503357,20.60887737,169.83,169.81,26.33518607]
[1748446503559,41.42525931,169.83,169.81,26.33518607]
[1748446505085,5.88824118,169.83,169.81,26.33518607]
[1748446505289,5.88824118,169.83,169.81,172.63518607]
[1748446507193,26.70462312,169.83,169.81,26.33518607]
[1748446507500,20.81638194,169.82,169.81,26.33518607]
[1748446507671,5.88824118,169.83,169.81,26.33518607]
[1748446508086,5.88824118,169.83,169.81,172.63518607]
[1748446509170,14.7187105,169.86,169.81,172.63518607]
[1748446510589,35.53509244,169.86,169.81,172.63518607]
[1748446511292,20.81638194,169.85,169.81,172.63518607]
[1748446511475,20.81638194,169.84,169.81,172.63518607]
[1748446511981,57.50591172,169.86,169.81,172.63518607]
[1748446512174,78.32229366,169.86,169.81,172.63518607]
[1748446512991,78.32229366,169.86,169.81,26.33518607]
[1748446513184,20.6076307,169.84,169.81,26.33518607]
[1748446513492,20.81638194,169.82,169.81,26.33518607]
[1748446514497,20.81638194,169.83,169.81,26.33518607]
[1748446514695,41.42401264,169.84,169.81,26.33518607]
[1748446516198,20.81638194,169.82,169.81,26.33518607]
[1748446517681,26.70496985,169.82,169.81,26.33518607]
[1748446519291,5.88858791,169.82,169.81,26.33518607]
[1748446520998,26.70496985,169.82,169.81,26.33518607]
[1748446521290,26.70496985,169.82,169.77,18.64964886]
[1748446521291,70.86937922,169.82,169.77,18.64964886]
[1748446521493,20.81638194,169.8,169.77,26.33518607]
[1748446522273,20.81638194,169.81,169.77,26.33518607]
[1748446522475,20.6100577,169.82,169.77,26.33518607]
[1748446522697,20.6100577,169.82,169.77,172.63518607]
[1748446523076,20.81638194,169.84,169.77,172.63518607]
[1748446524503,20.60884413,169.83,169.77,172.63518607]
[1748446527806,48.4237,169.87,169.85,18.64964886]
[1748446527807,14.71868676,169.86,169.85,18.64964886]
[1748446527984,14.71868676,169.86,169.84,1.79729603]
[1748446527985,14.71868676,169.86,169.8,18.64964886]
[1748446528185,14.71868676,169.86,169.8,188.84964886]
[1748446528888,5.88720122,169.86,169.8,188.84964886]
[1748446530606,26.70358316,169.86,169.8,188.84964886]
[1748446531890,20.60520428,169.86,169.8,188.84964886]
[1748446533805,14.71800306,169.86,169.8,188.84964886]
[1748446534411,5.88685465,169.87,169.8,188.84964886]
[1748446534589,20.60399128,169.87,169.81,36.88]
[1748446534786,41.42037322,169.87,169.82,18.64964886]
[1748446535304,20.60399128,169.87,169.82,18.64964886]
[1748446537905,20.60399128,169.87,169.81,18.64964886]
[1748446538286,41.42037322,169.87,169.81,18.64964886]
[1748446538698,50.02942906,169.9,169.81,18.64964886]
[1748446538994,50.02942906,169.9,169.81,188.84964886]
[1748446538995,20.81638194,169.87,169.81,188.84964886]
[1748446540800,5.88720122,169.86,169.81,188.84964886]
[1748446541190,20.60520428,169.86,169.81,188.84964886]
[1748446541520,20.81638194,169.85,169.81,188.84964886]
[1748446542986,20.6076307,169.84,169.81,188.84964886]
[1748446543191,41.42401264,169.84,169.81,42.54964886]
[1748446543398,20.81638194,169.82,169.81,42.54964886]
[1748446544332,20.81638194,169.83,169.81,42.54964886]
[1748446544535,41.42401264,169.84,169.81,42.54964886]
[1748446546506,20.81638194,169.83,169.81,42.54964886]
[1748446548211,26.70496985,169.82,169.81,42.54964886]
[1748446548627,14.71681826,169.88,169.81,42.54964886]
[1748446548845,14.71681826,169.88,169.83,18.64964886]
[1748446549420,20.81638194,169.87,169.83,18.64964886]
[1748446549618,20.81638194,169.86,169.82,18.64964886]
[1748446549933,20.81638194,169.87,169.82,18.64964886]
[1748446550427,20.60520428,169.86,169.82,18.64964886]
[1748446551216,41.42158622,169.86,169.82,18.64964886]
[1748446552833,41.42158622,169.86,169.78,18.64964886]
[1748446552834,20.81638194,169.83,169.78,18.64964886]
[1748446553138,20.81638194,169.81,169.78,18.64964886]
[1748446553316,20.81638194,169.8,169.78,18.64964886]
[1748446556325,20.60884413,169.83,169.78,188.84964886]
[1748446556822,5.88824118,169.83,169.78,188.84964886]
[1748446557142,14.71871928,169.86,169.78,188.84964886]
[1748446557143,20.6059205,169.86,169.78,188.84964886]
[1748446563235,20.6059205,169.86,169.8,18.64964886]
[1748446566216,20.6059205,169.86,169.8,188.84964886]
[1748446567837,5.88650812,169.88,169.82,18.64964886]
[1748446568021,5.88650812,169.88,169.82,198.87576539]
[1748446568227,5.88650812,169.88,169.82,188.84964886]
[1748446568427,20.60277842,169.88,169.82,188.84964886]
[1748446568626,5.88650812,169.88,169.82,188.84964886]
[1748446569851,20.59992596,169.91,169.82,188.84964886]
[1748446571226,41.4163079,169.91,169.82,188.84964886]
[1748446571845,20.59992596,169.91,169.82,188.84964886]
[1748446572154,5.88546877,169.91,169.84,25.18604886]
[1748446572338,5.88546877,169.91,169.84,62.02604886]
[1748446573444,20.59802745,169.92,169.84,62.02604886]
[1748446573644,20.59802745,169.92,169.84,232.22604886]
[1748446577061,14.71290504,169.92,169.84,232.22604886]
[1748446578833,20.59802745,169.92,169.84,232.22604886]
[1748446580133,41.41440939,169.92,169.84,232.22604886]
[1748446580452,20.59802745,169.92,169.84,232.22604886]
[1748446581552,20.81638194,169.9,169.84,195.38604886]
[1748446581757,20.81638194,169.9,169.84,188.84964886]
[1748446582550,20.81638194,169.91,169.84,188.84964886]
[1748446582753,50.0236395,169.92,169.84,188.84964886]
[1748446582958,20.81638194,169.91,169.84,188.84964886]
[1748446583461,5.88581518,169.9,169.84,188.84964886]
[1748446585556,20.81638194,169.91,169.84,188.84964886]
[1748446585960,41.41440939,169.92,169.84,188.84964886]
[1748446587460,14.71290504,169.92,169.84,188.84964886]
[1748446589050,35.52928698,169.92,169.84,188.84964886]
[1748446589361,20.59802745,169.92,169.84,188.84964886]
[1748446590047,41.41440939,169.92,169.84,188.84964886]
[1748446590360,20.81638194,169.89,169.84,188.84964886]
[1748446590560,20.81638194,169.88,169.84,42.54964886]
[1748446591563,36.82,169.91,169.84,42.54964886]
[1748446591564,5.88581518,169.9,169.84,42.54964886]
[1748446591759,20.60035314,169.9,169.84,42.54964886]
[1748446592665,41.41673508,169.9,169.84,42.54964886]
[1748446593264,20.81638194,169.88,169.84,42.54964886]
[1748446593469,5.88685465,169.87,169.84,42.54964886]
[1748446594263,41.42037322,169.87,169.84,42.54964886]
[1748446594844,20.81638194,169.86,169.84,42.54964886]
[1748446595273,20.81638194,169.85,169.84,42.54964886]
[1748446595450,26.70392977,169.85,169.84,42.54964886]
[1748446598374,41.42279936,169.85,169.79,18.64964886]
[1748446598553,20.81638194,169.83,169.79,42.54964886]
[1748446599145,57.42641742,169.85,169.79,42.54964886]
[1748446599361,20.81638194,169.84,169.79,42.54964886]
[1748446600070,5.88824118,169.83,169.79,42.54964886]
[1748446600474,26.70462312,169.83,169.79,42.54964886]
[1748446600651,41.42522607,169.83,169.79,42.54964886]
[1748446602150,5.88789448,169.84,169.79,42.54964886]
[1748446602356,5.88789448,169.84,169.79,195.00134886]
[1748446603859,41.42401264,169.84,169.79,188.84964886]
[1748446604063,5.88858791,169.82,169.79,188.84964886]
[1748446604467,5.88858791,169.82,169.79,42.54964886]
[1748446604865,5.88754783,169.85,169.79,42.54964886]
[1748446605072,5.88754783,169.85,169.79,188.84964886]
[1748446605372,5.88754783,169.85,169.79,225.66964886]
[1748446606177,5.88720122,169.86,169.79,225.66964886]
[1748446607575,20.60520428,169.86,169.79,225.66964886]
[1748446607779,20.81638194,169.85,169.79,225.66964886]
[1748446608077,20.60520428,169.86,169.79,188.84964886]
[1748446608078,41.42158622,169.86,169.79,188.84964886]
[1748446608376,20.60520428,169.86,169.79,188.84964886]
[1748446608761,41.42158622,169.86,169.79,188.84964886]
[1748446609877,5.88720122,169.86,169.79,188.84964886]
[1748446610079,5.88720122,169.86,169.81,18.64964886]
[1748446610884,20.81638194,169.88,169.87,36.66244764]
[1748446611063,20.81638194,169.88,169.87,32.36244764]
[1748446611470,16.34126682,169.89,169.88,18.64964886]
[1748446611665,43.04381039,169.89,169.88,32.36244764]
[1748446612679,41.41861039,169.89,169.88,32.36244764]
[1748446614075,5.88616163,169.89,169.88,32.36244764]
[1748446616170,5.88546877,169.91,169.88,32.36244764]
[1748446617484,20.59914071,169.91,169.88,32.36244764]
[1748446619163,20.81638194,169.9,169.88,32.36244764]
[1748446619367,20.59914071,169.91,169.88,32.36244764]
[1748446619368,26.70254357,169.89,169.88,32.36244764]
[1748446620406,26.70254357,169.89,169.88,13.71279878]
[1748446620695,26.70254357,169.89,169.83,18.64964886]
[1748446620696,70.84875581,169.89,169.83,18.64964886]
[1748446621001,20.81638194,169.86,169.83,32.36244764]
[1748446621568,5.88754783,169.85,169.83,32.36244764]
[1748446624716,20.60521528,169.86,169.83,32.36244764]
[1748446626621,5.88720122,169.86,169.83,32.36244764]
[1748446627923,5.88650812,169.88,169.83,32.36244764]
[1748446628412,41.41916036,169.88,169.83,32.36244764]
[1748446630298,20.81638194,169.85,169.83,32.36244764]
[1748446630900,5.88789448,169.84,169.83,32.36244764]
[1748446632227,20.81638194,169.85,169.83,32.36244764]
[1748446634402,41.42158622,169.86,169.83,32.36244764]
[1748446637511,20.81638194,169.85,169.83,32.36244764]
[1748446637705,20.81638194,169.84,169.83,32.36244764]
[1748446638704,20.81638194,169.84,169.83,13.71279878]
[1748446642008,26.70427642,169.84,169.83,13.71279878]
[1748446648351,47.52065836,169.84,169.83,13.71279878]
[1748446648720,84.28065836,169.84,169.83,13.71279878]
[1748446649641,166.28656702,169.84,169.79,13.71279878]
[1748446649827,26.70566344,169.8,169.79,13.71279878]
[1748446650849,5.8892815,169.8,169.79,13.71279878]
[1748446651161,26.70566344,169.8,169.79,13.71279878]
[1748446654144,5.88858791,169.82,169.79,13.71279878]
[1748446654346,20.81638194,169.8,169.79,13.71279878]
[1748446656961,26.70566344,169.8,169.79,13.71279878]
[1748446657344,5.8892815,169.8,169.79,13.71279878]
[1748446658065,5.88858791,169.82,169.79,13.71279878]
[1748446658247,5.88858791,169.82,169.8,18.64964886]
[1748446658854,5.88789448,169.84,169.8,18.64964886]
[1748446659049,5.88789448,169.84,169.8,32.36244764]
[1748446659774,20.6076307,169.84,169.8,32.36244764]
[1748446660565,20.6076307,169.84,169.8,178.66244764]
[1748446662556,14.71973622,169.84,169.8,178.66244764]
[1748446664465,5.88754783,169.85,169.8,178.66244764]
[1748446666374,5.88685465,169.87,169.8,178.66244764]
[1748446666584,5.88685465,169.87,169.81,10.02611653]
[1748446666879,5.88685465,169.87,169.82,18.64964886]
[1748446667650,5.88616163,169.89,169.88,18.64964886]
[1748446667847,5.88616163,169.89,169.88,32.36244764]
[1748446668356,26.70254357,169.89,169.88,32.36244764]
[1748446668772,5.88616163,169.89,169.88,32.36244764]
[1748446670883,26.70254357,169.89,169.88,32.36244764]
[1748446672880,5.88616163,169.89,169.88,32.36244764]
[1748446673179,26.70254357,169.89,169.88,32.36244764]
[1748446674181,5.88616163,169.89,169.88,32.36244764]
[1748446674376,26.70254357,169.89,169.88,32.36244764]
[1748446674865,14.71520398,169.9,169.88,32.36244764]
[1748446675264,20.81638194,169.89,169.88,32.36244764]
[1748446675859,26.70254357,169.89,169.88,32.36244764]
[1748446677084,26.70254357,169.89,169.88,13.71279878]
[1748446678563,14.71520398,169.9,169.88,32.36244764]
[1748446678765,5.88546877,169.91,169.9,13.71279878]
[1748446679059,5.88546877,169.91,169.9,32.36244764]
[1748446679881,26.70185071,169.91,169.9,32.36244764]
[1748446680284,5.88546877,169.91,169.9,32.36244764]
[1748446681272,26.70185071,169.91,169.9,13.71279878]
[1748446690096,26.70185071,169.91,169.79,15.9475]
[1748446690097,70.84286653,169.91,169.85,13.71279878]
[1748446690273,20.81638194,169.86,169.85,13.71279878]
[1748446690474,26.70358316,169.86,169.85,13.71279878]
[1748446693001,61.17630392,169.88,169.8,18.64964886]
[1748446693002,35.53268586,169.88,169.87,18.64964886]
[1748446693177,14.71630392,169.88,169.87,18.64964886]
[1748446693385,35.53268586,169.88,169.87,18.64964886]
[1748446694199,41.41919398,169.88,169.87,18.64964886]
[1748446694700,5.88650812,169.88,169.87,18.64964886]
[1748446696505,20.81638194,169.9,169.87,18.64964886]
[1748446696506,5.88616163,169.89,169.87,18.64964886]
[1748446700808,14.71427121,169.91,169.88,18.64964886]
[1748446701805,26.70219712,169.9,169.88,18.64964886]
[1748446702395,5.88581518,169.9,169.88,18.64964886]
[1748446702707,20.59973998,169.91,169.88,18.64964886]
[1748446703112,5.88546877,169.91,169.88,18.64964886]
[1748446703410,5.88546877,169.91,169.88,177.64964886]
[1748446704706,5.88477608,169.93,169.88,177.64964886]
[1748446712422,41.41309823,169.93,169.88,177.64964886]
[1748446713913,20.59671629,169.93,169.88,177.64964886]
[1748446723800,35.52832215,169.93,169.88,177.64964886]
[1748446726213,41.41309823,169.93,169.88,177.64964886]
[1748446727426,20.59671629,169.93,169.88,177.64964886]
[1748446728111,5.88477608,169.93,169.88,177.64964886]
[1748446728310,5.88442979,169.94,169.88,177.64964886]
[1748446730205,5.88408355,169.95,169.88,183.71834886]
[1748446733238,26.70046549,169.95,169.88,183.71834886]
[1748446733733,5.88408355,169.95,169.88,183.71834886]
[1748446733932,26.70046549,169.95,169.88,183.71834886]
[1748446735624,41.41067437,169.95,169.88,183.71834886]
[1748446736023,20.59429243,169.95,169.88,183.71834886]
[1748446738341,20.59065772,169.98,169.88,183.71834886]
[1748446738637,5.88235294,170.0,169.88,199.12411923]
[1748446738935,5.88235294,170.0,169.9,18.64964886]
[1748446739140,20.58823529,170.0,169.92,18.64964886]
[1748446739316,20.81638194,169.99,169.92,177.64964886]
[1748446739648,20.81638194,169.98,169.92,177.64964886]
[1748446740420,5.88339118,169.97,169.92,177.64964886]
[1748446742731,35.52226429,170.0,169.98,18.64964886]
[1748446742939,35.52226429,170.0,169.98,21.16625768]
[1748446743442,14.70588235,170.0,169.98,21.16625768]
[1748446743645,20.58581343,170.02,169.98,21.16625768]
[1748446743941,20.81638194,170.0,169.98,21.16625768]
[1748446744670,5.88269898,169.99,169.98,21.16625768]
[1748446746651,5.88235294,170.0,169.98,21.16625768]
[1748446746834,26.69873488,170.0,169.98,21.16625768]
[1748446753234,20.81638194,169.99,169.98,21.16625768]
[1748446753934,5.88235294,170.0,169.98,21.16625768]
[1748446754152,20.81638194,169.99,169.98,21.16625768]
[1748446755026,26.69908092,169.99,169.98,21.16625768]
[1748446756752,20.81638194,170.0,169.98,21.16625768]
[1748446757133,20.58581343,170.02,169.98,21.16625768]
[1748446757362,5.88166098,170.02,169.98,167.46625768]
[1748446757858,36.64,170.09,170.02,33.21660882]
[1748446757859,9.7,170.09,170.02,33.21660882]
[1748446758062,14.93121935,170.04,170.02,33.21660882]
[1748446758360,9.7,170.09,170.02,51.86625768]
[1748446758563,14.93121935,170.03,170.02,51.86625768]
[1748446759056,20.81253441,170.03,170.02,51.86625768]
[1748446760065,29.21383538,170.03,170.02,51.86625768]
[1748446761198,5.88131506,170.03,170.02,51.86625768]
[1748446761565,29.21383538,170.03,170.02,51.86625768]
[1748446762283,5.88131506,170.03,170.02,51.86625768]
[1748446762463,29.21383538,170.03,170.02,51.86625768]
[1748446763465,5.88131506,170.03,170.02,88.48625768]
[1748446763682,1.6585,170.08,170.05,18.64964886]
[1748446763888,1.5511,170.13,170.05,51.68494262]
[1748446764088,23.33252032,170.08,170.07,18.64964886]
[1748446764295,23.33252032,170.08,170.07,41.68494262]
[1748446764586,1.5511,170.13,170.07,41.68494262]
[1748446764765,22.12360337,170.13,170.07,41.68494262]
[1748446765175,22.12360337,170.13,170.07,51.68494262]
[1748446765385,5.8778581,170.13,170.12,18.64964886]
[1748446765590,5.8778581,170.13,170.12,78.10494262]
[1748446765773,5.8778581,170.13,170.12,88.10494262]
[1748446766288,14.69264546,170.16,170.13,28.64964886]
[1748446766586,14.68993356,170.19,170.13,41.48494262]
[1748446766886,23.33252032,170.15,170.13,187.78494262]
[1748446767090,23.33252032,170.14,170.13,18.64964886]
[1748446767465,14.68993356,170.19,170.13,18.64964886]
[1748446767666,23.33252032,170.15,170.13,18.64964886]